fUSD/lending_fUSD_20241119
["ID","MTS","AMOUNT","RATE_DAILY","PERIOD"]
[342673071,1732037443608,-9104.65363493,0.0001,2]
[342673292,1732037445891,-500.0,9.3e-05,3]
[342673294,1732037445901,-16483.298482,0.0001,2]
[342673313,1732037446073,-134878.02091179,0.0001,2]
[342673315,1732037446085,-10070.59464974,0.0001,2]
[342673322,1732037446139,-918.1813,0.0001,2]
[342673324,1732037446151,-45300.0,0.0001,2]
[342673331,1732037446206,-9317.9,0.0001,2]
[342673333,1732037446218,-35034.89776995,0.0001,2]
[342673336,1732037446229,-624160.83079408,0.0001,2]
[342673338,1732037446240,-4189.48088547,0.0001,2]
[342673348,1732037446331,-700.0,9.4e-05,3]
[342673350,1732037446340,-3999.42611812,0.0001,2]
[342673353,1732037446352,-4643.81208,0.0001,2]
[342674138,1732037462420,-1000.0,9.5e-05,3]
[342674139,1732037462445,-1300.0,9.6e-05,3]
[342674140,1732037462467,-200.0,9.7e-05,3]
[342674141,1732037462652,-200.0,9.8e-05,3]
[342674142,1732037462679,-200.0,9.9e-05,3]
[342674143,1732037462707,-997100.0,0.0001,2]
[342674146,1732037982123,-150.0,9.8e-05,2]
[342674147,1732037982144,-300.0,9.8e-05,2]
[342674148,1732037982171,-125218.0,9.801e-05,2]
[342674149,1732037982192,-1000.0,9.9e-05,2]
[342674150,1732037982213,-3443.9211,9.9e-05,2]
[342674151,1732037982233,-30898.2086,9.9e-05,2]
[342674152,1732037982255,-14712.5498,9.9e-05,2]
[342674153,1732037982277,-500.49023213,9.973e-05,2]
[342674154,1732037982298,-500.0,9.973e-05,2]
[342674155,1732037982319,-627.13642484,9.973e-05,2]
[342674156,1732037982340,-324.64608094,9.973e-05,2]
[342674157,1732037982362,-500.0,9.973e-05,2]
[342674158,1732037982388,-21536726.05127791,0.0001,2]
[342674159,1732037982412,-213.007739,0.0001,2]
[342674160,1732037982433,-2601.63780343,0.0001,2]
[342674161,1732037982456,-200.0,0.0001,3]
[342674162,1732037982649,-9136.84388674,0.0001,2]
[342674163,1732037982670,-3927.1679349,0.0001,2]
[342674164,1732037982692,-42308.91446582,0.0001,2]
[342674165,1732037982728,500.0,9.973e-05,2]
[342674166,1732037983255,466.05364377,9.973e-05,2]
[342674167,1732038001367,1000.0,9.9e-05,2]
[342674168,1732038092339,-678.54,0.00016116,5]
[342674169,1732038118170,-255.0,0.0001078,2]
[342674170,1732038118191,-879.35,0.00015,2]
[342674171,1732038185656,-150.0,0.00011847,2]
[342674172,1732038185683,-3472.9996,0.000149,2]
[342674173,1732038185708,-4733.65,0.00015,2]
[342674174,1732038190080,-275.76,0.00015342,2]
[342674175,1732038190105,-319.39,0.00015342,2]
[342674176,1732038190130,-6605.62,0.00016116,2]
[342674177,1732038190154,-824.63,0.00016116,2]
[342674178,1732038190179,-880.62,0.00016116,2]
[342674179,1732038190202,-299.99,0.00016116,4]
[342674180,1732038190227,-9415.58,0.00016116,2]
[342674181,1732038190253,-189.99,0.00016116,2]
[342674182,1732038190277,-209.16,0.00019178,2]
[342674183,1732038190301,-3000.0,0.000199,2]
[342674184,1732038192950,-275.76,0.00021745,2]
[342674185,1732038192977,-319.39,0.00021745,2]
[342674186,1732038193152,-1458.12,0.00021917,2]
[342674187,1732038193178,-499.99,0.00021917,2]
[342674188,1732038193203,-1502.38,0.00021917,2]
[342674189,1732038193228,-3000.0,0.000224,2]
[342674190,1732038193254,-1458.12,0.00023287,7]
[342674191,1732038193278,-1458.12,0.00024657,12]
[342674192,1732038193303,-209.16,0.00024658,2]
[342674193,1732038193329,-3000.0,0.000249,2]
[342674194,1732038193354,-601.47,0.00024999,2]
[342674195,1732038193379,-1340.78,0.00024999,2]
[342674196,1732038193406,-150.99,0.00024999,2]
[342674197,1732038193431,-1000.0,0.00024999,2]
[342674198,1732038196816,-1698.312,0.00025824,11]
[342674199,1732038196846,-181.659,0.00025824,11]
[342674200,1732038196873,-960.47,0.00025985,15]
[342674201,1732038196901,-1458.12,0.00026027,17]
[342674202,1732038196928,-250.0,0.00027,2]
[342674203,1732038196954,-1458.12,0.00027397,22]
[342674204,1732038196980,-3000.0,0.000274,2]
[342674205,1732038197006,-150.0,0.00028,60]
[342674206,1732038197034,-275.76,0.00028147,2]
[342674207,1732038197061,-319.39,0.00028147,2]
[342674208,1732038197090,-1458.12,0.00028767,27]
[342674209,1732038197115,-300.0,0.00029,2]
[342674210,1732038197140,-163.17,0.00029748,2]
[342674211,1732038197165,-200.0,0.00029842,2]
[342674212,1732038197192,-3000.0,0.000299,2]
[342674213,1732038197217,-150.0,0.00029945,2]
[342674214,1732038197242,-151.0,0.0003,120]
[342674215,1732038197268,-151.0,0.0003,120]
[342674216,1732038197640,480.88943,0.00026975,15]
[342674217,1732038238203,3000.0,0.00029945,2]
[342674218,1732038280913,3000.0,0.00029945,2]
[342674219,1732038308416,200.0,0.0003,2]
[342674220,1732038323843,2993.98957,0.0003,2]
[342674221,1732038342243,-310.23019957,0.00029816,2]
[342674222,1732038425106,-302.59980043,0.00029816,2]
[342674223,1732038425140,-6.01043,0.0003,2]
[342674224,1732038425166,-250.0,0.00030035,2]
[342674225,1732038425188,-1458.12,0.00030136,32]
[342674226,1732038425210,-209.16,0.00030137,2]
[342674227,1732038425232,-178.11,0.00030163,2]
[342674228,1732038425254,-2002.22,0.00030572,63]
[342674229,1732038425275,-500.0,0.00030621,2]
[342674230,1732038425300,-1000.0,0.00030646,2]
[342674231,1732038425321,-150.0,0.00030712,2]
[342674232,1732038425342,-150.0,0.00030745,2]
[342674233,1732038425367,-594.88,0.00030815,2]
[342674234,1732038425390,-594.88,0.00030823,2]
[342674235,1732038425412,-594.88,0.00030831,2]
[342674236,1732038425434,-594.88,0.0003084,2]
[342674237,1732038425456,-594.88,0.00030848,2]
[342674238,1732038425482,-594.88,0.00030856,2]
[342674239,1732038425505,-594.88,0.00030864,2]
[342674240,1732038425528,-594.88,0.00030872,2]
[342674241,1732038425554,-594.88,0.0003088,2]
[342674242,1732038425580,-594.88,0.00030888,2]
[342674243,1732038425603,-531.88,0.00030893,30]
[342674244,1732038425626,-594.88,0.00030896,2]
[342674245,1732038425649,-594.88,0.00030904,2]
[342674246,1732038425672,-9969.1053195,0.00030906,2]
[342674247,1732038443098,-2130.80516061,0.00030906,2]
[342674249,1732038448086,-3878.11951989,0.00030906,2]
[342674250,1732038448108,-594.88,0.00030913,2]
[342674251,1732038448131,-594.88,0.00030921,2]
[342674252,1732038448153,-594.88,0.00030929,2]
[342674253,1732038448174,-594.88,0.00030937,2]
[342674254,1732038448196,-594.88,0.00030945,2]
[342674255,1732038448218,-594.88,0.00030953,2]
[342674256,1732038448238,-594.88,0.00030961,2]
[342674257,1732038448259,-594.88,0.00030969,2]
[342674258,1732038448279,-1000.0,0.00030986,2]
[342674259,1732038448300,-350.0,0.00031,2]
[342674260,1732038448323,-300.0,0.00031049,2]
[342674261,1732038448343,-1856.25,0.00031229,2]
[342674262,1732038448363,-1000.0,0.000315,5]
[342674263,1732038448383,-1458.12,0.00031506,37]
[342674264,1732038448403,-250.0,0.00031513,2]
[342674265,1732038448423,-150.0,0.00031545,2]
[342674266,1732038448444,-706.99,0.00031657,2]
[342674267,1732038448464,-7447.9,0.00031666,2]
[342674268,1732038448484,-166.81,0.00031677,2]
[342674269,1732038448504,-150.0,0.00031707,2]
[342674270,1732038448525,-500.0,0.00031757,2]
[342674271,1732038448545,-2127.09,0.00031857,2]
[342674272,1732038448569,-500.0,0.00031915,3]
[342674273,1732038448589,-612.83,0.0003208,2]
[342674274,1732038448610,-426.1694679,0.00032221,2]
[342674275,1732038448630,-150.0,0.00032345,2]
[342674276,1732038448650,-426.1694679,0.00032436,2]
[342674277,1732038448672,-547.98,0.0003258,120]
[342674278,1732038448695,-426.1694679,0.00032754,2]
[342674279,1732038448716,-250.0,0.00032858,2]
[342674280,1732038448738,-1458.12,0.00032876,42]
[342674281,1732038448759,-326.93,0.00032877,2]
[342674282,1732038448779,-7160.23985376,0.00032935,5]
[342674283,1732038452167,-209.32190053,0.00032935,5]
[342674284,1732038453117,-7392.38824571,0.00032935,5]
[342674285,1732038453145,-400.0,0.00033,2]
[342674286,1732038453320,-150.0,0.00033,120]
[342674287,1732038453343,-200.0,0.00033038,2]
[342674288,1732038453365,-426.1694679,0.00033071,2]
[342674289,1732038453386,-150.0,0.00033145,2]
[342674290,1732038453407,-426.1694679,0.00033406,2]
[342674291,1732038453428,-2751.0,0.00033409,120]
[342674292,1732038453449,-166.81,0.00033419,2]
[342674293,1732038453469,-1164.72,0.00033427,10]
[342674294,1732038453491,-531.88,0.00033477,120]
[342674295,1732038453511,-3414.05,0.00033547,2]
[342674296,1732038453532,-9096.57,0.00033612,2]
[342674297,1732038453553,-2221.05,0.00033613,10]
[342674298,1732038453574,-23900.0,0.00033623,2]
[342674299,1732038453595,-426.1694679,0.00033647,2]
[342674300,1732038453617,-151.0,0.00033753,120]
[342674301,1732038453637,-426.1694679,0.00033831,2]
[342674302,1732038453658,-804.46,0.00033885,3]
[342674303,1732038453679,-15289.4,0.00033895,5]
[342674304,1732038453704,-250.0,0.00033911,120]
[342674305,1732038453724,-150.0,0.00033945,2]
[342674306,1732038453746,-150.0,0.00033966,2]
[342674307,1732038453769,-160.89,0.00033972,3]
[342674308,1732038453791,-1282.73980963,0.0003412,15]
[342674309,1732038453814,-426.1694679,0.00034137,2]
[342674310,1732038453835,-321.78,0.0003422,3]
[342674311,1732038453856,-1523.94,0.0003423,120]
[342674312,1732038453877,-1458.12,0.00034246,47]
[342674313,1732038453898,-150.0,0.000343,120]
[342674314,1732038453921,-612.83,0.00034344,2]
[342674315,1732038453942,-1850.87,0.00034467,10]
[342674316,1732038453964,-1000.0,0.00034477,2]
[342674317,1732038453984,-426.1694679,0.00034487,2]
[342674318,1732038454005,-426.1694683,0.00034533,2]
[342674319,1732038454026,-150.0,0.00034548,10]
[342674320,1732038454047,-275.76,0.00034549,2]
[342674321,1732038454069,-319.39,0.00034549,2]
[342674322,1732038454091,-180.94096748,0.000346,120]
[342674323,1732038454111,-377.82,0.00034609,2]
[342674324,1732038454132,-150.0,0.00034745,2]
[342674325,1732038454153,-450.0,0.00035,2]
[342674326,1732038454173,-189.37504185,0.00035,120]
[342674327,1732038454196,-3000.0,0.00035,2]
[342674328,1732038454217,-3376.0,0.00035,94]
[342674329,1732038454237,-1000.0,0.00035002,2]
[342674330,1732038454260,-300.0,0.00035003,2]
[342674331,1732038454281,-166.81,0.00035162,2]
[342674332,1732038454301,-14925.5,0.00035253,5]
[342674333,1732038454323,-390.7027,0.00035432,2]
[342674334,1732038454345,-150.0,0.00035545,2]
[342674335,1732038454365,-643.56,0.0003559,3]
[342674336,1732038454387,-150.0,0.000356,120]
[342674337,1732038454408,-1458.12,0.00035616,52]
[342674338,1732038454428,-209.16,0.00035616,2]
[342674339,1732038454448,-1594.0,0.00035838,20]
[342674340,1732038454469,-531.88,0.00036061,120]
[342674341,1732038454490,-150.0,0.00036197,2]
[342674342,1732038454510,-3928.772,0.00036197,2]
[342674343,1732038454529,-1594.0,0.00036208,20]
[342674344,1732038454550,-150.0,0.00036345,2]
[342674345,1732038454571,-300.0,0.00036373,2]
[342674346,1732038454591,-1594.0,0.00036577,20]
[342674347,1732038454612,-612.83,0.00036608,2]
[342674348,1732038454633,-547.98,0.00036653,120]
[342674349,1732038454653,-166.81,0.00036905,2]
[342674350,1732038454674,-1594.0,0.00036947,20]
[342674351,1732038454698,-466.44487906,0.00036947,20]
[342674352,1732038454718,-1458.12,0.00036986,57]
[342674353,1732038454739,-5309.018594,0.00037,90]
[342674354,1732038454761,-500.0,0.00037,2]
[342674355,1732038454781,-1282.73980963,0.0003714,15]
[342674356,1732038454804,-150.0,0.00037145,2]
[342674357,1732038454827,-865.44,0.00037149,2]
[342674358,1732038454849,-3714.7,0.00037241,117]
[342674359,1732038454870,-300.0,0.00037286,2]
[342674360,1732038454896,-325.32,0.00037286,2]
[342674361,1732038454924,-236.99,0.00037286,2]
[342674362,1732038454950,-308.49,0.00037286,2]
[342674363,1732038454973,-362.34,0.00037286,2]
[342674364,1732038454998,-158.34,0.00037286,2]
[342674365,1732038455022,-304.27,0.00037286,2]
[342674366,1732038455047,-1000.0,0.000373,15]
[342674367,1732038455078,-1594.0,0.00037316,20]
[342674368,1732038455105,-151.0,0.00037507,120]
[342674369,1732038455129,-353.43,0.00037559,2]
[342674370,1732038455154,-152.66,0.0003756,2]
[342674371,1732038455177,-150.0,0.0003756,2]
[342674372,1732038455200,-1594.0,0.00037686,20]
[342674373,1732038455226,-2780.73431558,0.000379,120]
[342674374,1732038455253,-150.0,0.00037944,2]
[342674375,1732038455278,-6784.06132521,0.00038,120]
[342674376,1732038455303,-1794.55266833,0.00038,120]
[342674377,1732038455331,-1594.0,0.00038055,20]
[342674378,1732038455355,-150.0,0.00038108,2]
[342674379,1732038455381,-3747.0,0.00038197,2]
[342674380,1732038455406,-1000.0,0.00038308,2]
[342674381,1732038455430,-1458.12,0.00038356,62]
[342674382,1732038455456,-531.88,0.00038645,120]
[342674383,1732038455481,-150.0,0.00038744,2]
[342674384,1732038455507,-612.83,0.00038872,2]
[342674385,1732038455530,-550.0,0.00039,2]
[342674386,1732038455554,-8102.4,0.00039483,117]
[342674387,1732038455580,-150.0,0.00039544,2]
[342674388,1732038455606,-1458.12,0.00039726,67]
[342674389,1732038455631,-5000.0,0.0004,60]
[342674390,1732038455656,-3037.89,0.0004,120]
[342674391,1732038455681,-377.67,0.0004,30]
[342674392,1732038455704,-12499.99,0.0004,120]
[342674393,1732038455732,-12499.99,0.0004,120]
[342674394,1732038455757,-12500.0,0.0004,120]
[342674395,1732038455781,-12499.99,0.0004,120]
[342674396,1732038455803,-12499.99,0.0004,120]
[342674397,1732038455826,-1550.98932373,0.0004,120]
[342674408,1732038550206,-5263.99346441,0.00030987,2]
[342674409,1732038560138,-4830.82334878,0.00030987,2]
[342674410,1732038560162,-1000.0,0.00036923,2]
[342674411,1732038560185,-3000.0,0.00039544,34]
[342674412,1732038560207,-6093.20759122,0.0004,120]
[342674413,1732038567137,-4855.80308505,0.0004,120]
[342674414,1732038567159,-6784.06132521,0.0004,120]
[342674415,1732038567180,-1794.55266833,0.0004,120]
[342674416,1732038567201,-6716.43,0.0004,30]
[342674417,1732038567222,-1282.73980963,0.0004016,15]
[342674418,1732038567243,-150.0,0.00040344,2]
[342674419,1732038567265,-180.67,0.00040344,30]
[342674420,1732038567285,-150.99,0.00040344,2]
[342674421,1732038567306,-299.99,0.00040344,120]
[342674422,1732038567327,-1266.57453052,0.00040375,120]
[342674426,1732038571174,-150.0,0.0004,30]
[342674427,1732038571195,-150.0,0.00040375,120]
[342674428,1732038571217,-500.0,0.00040375,120]
[342674429,1732038571239,-11233.42546948,0.00040375,120]
[342674430,1732038571260,-12500.0,0.00040375,120]
[342674431,1732038571286,-150.0,0.00040434,120]
[342674432,1732038571307,-1026.33,0.00040625,2]
[342674433,1732038571328,-547.98,0.00040725,120]
[342674434,1732038571349,-9092.50603052,0.0004075,120]
[342674448,1732038631938,-200.0,0.00030988,2]
[342674450,1732038631948,-400.0,0.00030988,120]
[342674451,1732038631957,-1263.72,0.00030988,120]
[342674456,1732038632452,-0.00259956,0.00030988,120]
[342674459,1732038637056,1000.0,0.00021917,2]
[342674460,1732038637464,151.03919013,0.00023287,7]
[342674461,1732038637493,848.96080987,0.00023287,7]
[342674466,1732038637814,1000.0,0.00024657,12]
[342674526,1732038639031,-1000.0,0.00026027,17]
[342674527,1732038639042,-5520.33872565,0.00030988,120]
[342674528,1732038639052,-1794.55266833,0.00030988,120]
[342674529,1732038639062,-150.0,0.00030988,2]
[342674530,1732038639072,-1228.54397202,0.00030988,12]
[342674531,1732038639081,-150.0,0.00034087,2]
[342674532,1732038639091,-12854.2782332,0.00040133,2]
[342674533,1732038639100,-3000.0,0.00040625,38]
[342674534,1732038639110,-2000.0,0.0004075,7]
[342674535,1732038639119,-200.0,0.0004075,7]
[342674536,1732038639128,-3407.49396948,0.0004075,120]
[342674537,1732038639138,-12500.0,0.0004075,120]
[342674538,1732038639147,-356.33,0.00040952,2]
[342674539,1732038639157,-275.76,0.00040952,2]
[342674540,1732038639166,-319.39,0.00040952,2]
[342674541,1732038639175,-1800.0,0.00041,42]
[342674542,1732038639185,-600.0,0.00041,2]
[342674543,1732038639195,-23900.0,0.00041025,2]
[342674544,1732038639204,-209.16,0.00041096,2]
[342674545,1732038639213,-157.0,0.00041096,2]
[342674546,1732038639223,-892.59,0.00041115,10]
[342674547,1732038639232,-1393.63,0.00041115,10]
[342674548,1732038639242,-12500.0,0.00041125,120]
[342674549,1732038639251,-12500.0,0.00041125,120]
[342674550,1732038639265,-612.83,0.00041136,2]
[342674551,1732038639275,-150.0,0.00041144,2]
[342674552,1732038639284,-1161.36,0.00041187,10]
[342674553,1732038639294,-242.292,0.00041197,2]
[342674554,1732038639304,-531.88,0.00041229,120]
[342674555,1732038639313,-151.0,0.0004126,120]
[342674556,1732038639323,-12500.0,0.000415,120]
[342674557,1732038639332,-8780.2,0.00041724,117]
[342674558,1732038639342,-1000.0,0.0004175,5]
[342674559,1732038639352,-12500.0,0.00041875,120]
[342674560,1732038639363,-150.0,0.00041944,2]
[342674561,1732038639372,-5000.0,0.00042,60]
[342674562,1732038639382,-1800.0,0.00042,43]
[342674563,1732038639393,-235.62,0.00042002,2]
[342674564,1732038639403,-1000.0,0.00042139,2]
[342674565,1732038639412,-12500.0,0.0004225,120]
[342674566,1732038639421,-300.0,0.0004246,2]
[342674567,1732038639431,-12500.0,0.00042625,120]
[342674568,1732038639441,-150.0,0.00042744,2]
[342674569,1732038639450,-1815.881698,0.000428,30]
[342674570,1732038639459,-5000.0,0.000428,120]
[342674571,1732038639468,-500.0,0.000428,15]
[342674572,1732038639483,-1100.0,0.000429,15]
[342674573,1732038639493,-208.31451871,0.000429,15]
[342674574,1732038639502,-992.89678937,0.000429,2]
[342674575,1732038639511,-1466.21340756,0.000429,15]
[342674576,1732038639522,-303528.98502329,0.00043,30]
[342674577,1732038639534,-65857.64513924,0.00043,30]
[342674578,1732038639768,-47255.95035642,0.00043,30]
[342674579,1732038639780,-3124.10000003,0.00043,30]
[342674580,1732038639792,-466.38,0.00043,30]
[342674581,1732038639803,-2257.88583196,0.00043,30]
[342674582,1732038639818,-30589.9074276,0.00043,30]
[342674583,1732038639830,-148204.37989595,0.00043,30]
[342674584,1732038639876,-930.58621719,0.00043,30]
[342674585,1732038639887,-14940.25384363,0.00043,30]
[342674587,1732038639897,-13568.12265042,0.00043,120]
[342674589,1732038639907,-3589.10533666,0.00043,120]
[342674590,1732038639916,-650.0,0.00043,2]
[342674591,1732038639926,-12500.0,0.00043,120]
[342674593,1732038639935,-187.13,0.00043014,120]
[342674595,1732038639945,-1282.73980963,0.0004318,15]
[342674597,1732038639955,-12500.0,0.00043375,120]
[342674599,1732038639964,-612.83,0.000434,2]
[342674601,1732038639974,-150.0,0.00043544,2]
[342674602,1732038639985,-12500.0,0.0004375,120]
[342674603,1732038639995,-481.25939489,0.000438,120]
[342674604,1732038640005,-200.0,0.000438,2]
[342674605,1732038640016,-531.88,0.00043813,120]
[342674606,1732038640026,-300.0,0.0004383,2]
[342674607,1732038640036,-6646.58422128,0.00043835,14]
[342674608,1732038640045,-250.0,0.00043835,120]
[342674609,1732038640055,-500.0,0.00043835,120]
[342674610,1732038640064,-750.0,0.00043835,120]
[342674611,1732038640074,-1000.0,0.00043835,120]
[342674612,1732038640083,-1250.0,0.00043835,120]
[342674613,1732038640093,-1500.0,0.00043835,120]
[342674614,1732038640103,-1750.0,0.00043835,120]
[342674615,1732038640112,-2000.0,0.00043835,120]
[342674616,1732038640122,-2250.0,0.00043835,120]
[342674617,1732038640131,-476.48849957,0.00043835,120]
[342674618,1732038640141,-9452.8,0.00043966,117]
[342674619,1732038640150,-5000.0,0.00043999,70]
[342674620,1732038640160,-1800.0,0.00044,45]
[342674621,1732038640169,-353.43,0.00044082,2]
[342674622,1732038640178,-12500.0,0.00044125,120]
[342674623,1732038640188,-150.0,0.00044344,2]
[342674624,1732038640198,-992.89678927,0.000444,2]
[342674625,1732038640207,-12500.0,0.000445,120]
[342674626,1732038640217,-2127.09,0.000446,2]
[342674627,1732038640228,-547.98,0.00044798,120]
[342674628,1732038640237,-12500.0,0.00044875,120]
[342674629,1732038640247,-208.31451869,0.00044948,15]
[342674630,1732038640256,-1050.0,0.00045,2]
[342674631,1732038640265,-50000.0,0.00045,120]
[342674632,1732038640275,-16460.83972188,0.00045,60]
[342674633,1732038640284,-800.0,0.00045,120]
[342674634,1732038640294,-1800.0,0.00045,46]
[342674636,1732038640304,-700.0,0.00045,2]
[342674637,1732038640312,-151.0,0.00045014,120]
[342674639,1732038640322,-150.0,0.00045144,2]
[342674640,1732038640331,-178.11,0.00045244,2]
[342674641,1732038640340,-12500.0,0.0004525,120]
[342674642,1732038640349,-5000.0,0.00045369,70]
[342674643,1732038640359,-1523.94,0.00045463,120]
[342674644,1732038640369,-150.0,0.00045589,10]
[342674645,1732038640378,-12500.0,0.00045625,120]
[342674646,1732038640387,-3000.0,0.00045625,38]
[342674647,1732038640396,-612.83,0.00045664,2]
[342674648,1732038640405,-992.89678927,0.000459,2]
[342674649,1732038640415,-1000.0,0.0004597,2]
[342674651,1732038640424,-12500.0,0.00046,120]
[342674652,1732038640433,-16960.15331303,0.00046,120]
[342674653,1732038640444,-4486.38167083,0.00046,120]
[342674654,1732038640453,-1282.73980963,0.000462,15]
[342674655,1732038640463,-2689.87475749,0.00046207,117]
[342674656,1732038640480,-7441.12524251,0.00046207,117]
[342674657,1732038640489,-12500.0,0.00046375,120]
[342674658,1732038640498,-531.88,0.00046397,120]
[342674659,1732038640507,-3000.0,0.000466,2]
[342674660,1732038640517,-1256.88314349,0.00046739,70]
[342674661,1732038640528,-3743.11685651,0.00046739,70]
[342674662,1732038640538,-12500.0,0.0004675,120]
[342674663,1732038640547,-1698.312,0.00046868,78]
[342674664,1732038640556,-165.55,0.00046911,2]
[342674665,1732038640565,-208.31451869,0.00046995,15]
[342674666,1732038640574,-750.0,0.00047,2]
[342674667,1732038640584,-5786.26700728,0.00047,120]
[342674668,1732038640648,-1000.0,0.00027397,22]
[342674669,1732038640658,-1000.0,0.00028767,27]
[342674670,1732038640668,-1000.0,0.00030136,32]
[342674671,1732038640677,-1000.0,0.00031506,37]
[342674672,1732038640870,-175.85691141,0.00032876,42]
[342674673,1732038640883,-824.14308859,0.00032876,42]
[342674674,1732038640892,-730.04691142,0.00047,120]
[342674675,1732038640903,-605.1955,0.00047,120]
[342674676,1732038640927,-312.33225507,0.00034246,47]
[342674679,1732038643002,-687.66774493,0.00034246,47]
[342674680,1732038643012,-1000.0,0.00035616,52]
[342674681,1732038643021,-1000.0,0.00036986,57]
[342674682,1732038643030,-1000.0,0.00038356,62]
[342674683,1732038643039,-1000.0,0.00039726,67]
[342674684,1732038643048,-581.21222644,0.00041095,72]
[342674685,1732038643057,-2878.4905813,0.00047,120]
[342674686,1732038643067,-285.65502638,0.00047125,120]
[342674687,1732038643162,-10700.62752977,0.00047125,120]
[342674688,1732038643239,-1513.71744385,0.00047125,120]
[342674689,1732038643249,-242.23,0.0004729,120]
[342674690,1732038643258,-1000.0,0.00047294,13]
[342674691,1732038643267,-1000.0,0.00047294,13]
[342674692,1732038643276,-1000.0,0.00047294,13]
[342674693,1732038643286,-1000.0,0.00047294,13]
[342674694,1732038643296,-1000.0,0.00047294,13]
[342674695,1732038643305,-1000.0,0.00047294,13]
[342674696,1732038643314,-1000.0,0.00047294,13]
[342674697,1732038643324,-1000.0,0.00047294,13]
[342674698,1732038643333,-1000.0,0.00047294,13]
[342674699,1732038643342,-1000.0,0.00047294,13]
[342674700,1732038643352,-388.45309327,0.00047294,13]
[342674701,1732038643365,-611.54690673,0.00047294,13]
[342674702,1732038643375,-1000.0,0.00047294,13]
[342674703,1732038643385,-1000.0,0.00047294,13]
[342674704,1732038643394,-1000.0,0.00047294,13]
[342674705,1732038643404,-1000.0,0.00047294,13]
[342674706,1732038643414,-1000.0,0.00047294,13]
[342674707,1732038643423,-1000.0,0.00047294,13]
[342674708,1732038643433,-1000.0,0.00047294,13]
[342674709,1732038643442,-1000.0,0.00047294,13]
[342674710,1732038643451,-1000.0,0.00047294,13]
[342674712,1732038643460,-1000.0,0.00047294,13]
[342674713,1732038643469,-1000.0,0.00047294,13]
[342674714,1732038643481,-1000.0,0.00047294,13]
[342674715,1732038643491,-1000.0,0.00047294,13]
[342674716,1732038643500,-1000.0,0.00047294,13]
[342674717,1732038643509,-1000.0,0.00047294,13]
[342674718,1732038643519,-1000.0,0.00047294,13]
[342674719,1732038643529,-1000.0,0.00047294,13]
[342674720,1732038643538,-1000.0,0.00047294,13]
[342674721,1732038643548,-1057.0,0.00047294,13]
[342674722,1732038643557,-800.0,0.00047294,17]
[342674723,1732038643567,-800.0,0.00047294,17]
[342674724,1732038643576,-800.0,0.00047294,17]
[342674725,1732038643585,-800.0,0.00047294,17]
[342674726,1732038643594,-800.0,0.00047294,17]
[342674727,1732038643603,-800.0,0.00047294,17]
[342674728,1732038643612,-800.0,0.00047294,17]
[342674729,1732038643621,-800.0,0.00047294,17]
[342674730,1732038643630,-800.0,0.00047294,17]
[342674731,1732038643639,-800.0,0.00047294,17]
[342674732,1732038643648,-356.33,0.00047354,2]
[342674733,1732038643657,-275.76,0.00047354,2]
[342674734,1732038643667,-319.39,0.00047354,2]
[342674735,1732038643676,-992.89678927,0.000474,2]